[Event "Early-Titled-Tuesday-Blitz-May-14-2024"]
[Site "Chess.com"]
[Date "2024.05.14"]
[Round "8"]
[White "Kushch_Nikolai"]
[Black "Sofia_Blokhin"]
[Result "1-0"]
[WhiteElo "2414"]
[BlackElo "2259"]
[TimeControl "180+1"]
[EndTime "9:29:52 PDT"]
[Termination "Kushch_Nikolai won by resignation"]

1. Nf3 {[%clk 0:03:00.9]} 1... f5 {[%clk 0:02:55]} 2. g3 {[%clk 0:02:57.1]} 2...
Nf6 {[%clk 0:02:54.7]} 3. Bg2 {[%clk 0:02:57.2]} 3... g6 {[%clk 0:02:55.2]} 4.
O-O {[%clk 0:02:57.4]} 4... Bg7 {[%clk 0:02:55.6]} 5. d4 {[%clk 0:02:54.3]} 5...
O-O {[%clk 0:02:54.9]} 6. Nbd2 {[%clk 0:02:54.3]} 6... d6 {[%clk 0:02:53.5]} 7.
Nc4 {[%clk 0:02:49.2]} 7... c6 {[%clk 0:02:47]} 8. c3 {[%clk 0:02:48.5]} 8... h6
{[%clk 0:02:45.4]} 9. a4 {[%clk 0:02:45.7]} 9... Be6 {[%clk 0:02:45.3]} 10. b3
{[%clk 0:02:42.6]} 10... Bf7 {[%clk 0:02:43.3]} 11. Nfd2 {[%clk 0:02:35.6]}
11... Nbd7 {[%clk 0:02:42]} 12. a5 {[%clk 0:02:32.9]} 12... a6 {[%clk 0:02:37]}
13. Qc2 {[%clk 0:02:30.7]} 13... e5 {[%clk 0:02:35.7]} 14. dxe5 {[%clk
0:02:30.2]} 14... dxe5 {[%clk 0:02:35.6]} 15. e4 {[%clk 0:02:27.9]} 15... f4
{[%clk 0:02:30.6]} 16. gxf4 {[%clk 0:02:26]} 16... Nh5 {[%clk 0:02:30.5]} 17.
Nf3 {[%clk 0:02:13.4]} 17... exf4 {[%clk 0:02:27.4]} 18. Ba3 {[%clk 0:02:09.3]}
18... c5 {[%clk 0:02:11.3]} 19. Rad1 {[%clk 0:02:08.5]} 19... g5 {[%clk
0:02:04.4]} 20. Bxc5 {[%clk 0:01:58.5]} 20... g4 {[%clk 0:02:03.2]} 21. Nfe5
{[%clk 0:01:53]} 21... Bxc4 {[%clk 0:01:50.9]} 22. Nxc4 {[%clk 0:01:46.7]} 22...
f3 {[%clk 0:01:20.2]} 23. Bh1 {[%clk 0:01:46.4]} 23... Nf4 {[%clk 0:01:20.3]}
24. Rfe1 {[%clk 0:01:46.6]} 24... Nh3+ {[%clk 0:00:58.6]} 25. Kf1 {[%clk
0:01:46]} 25... Bxc3 {[%clk 0:00:48.7]} 26. Qxc3 {[%clk 0:01:36.3]} 26... Qh4
{[%clk 0:00:47.1]} 27. Rxd7 {[%clk 0:01:32.6]} 27... Rf6 {[%clk 0:00:34.8]} 28.
Red1 {[%clk 0:01:17.6]} 28... Nf4 {[%clk 0:00:31]} 29. Bxf3 {[%clk 0:01:04.2]}
29... Qh3+ {[%clk 0:00:26.9]} 30. Ke1 {[%clk 0:01:04]} 30... gxf3 {[%clk
0:00:21.8]} 31. Qxf6 {[%clk 0:01:01.6]} 31... Ng2+ {[%clk 0:00:07.8]} 32. Kd2
{[%clk 0:01:01.6]} 32... Qxd7+ {[%clk 0:00:07.5]} 33. Kc2 {[%clk 0:01:01.7]}
33... Qf7 {[%clk 0:00:03.8]} 34. Qxh6 {[%clk 0:00:57.1]} 34... Qh7 {[%clk
0:00:02.8]} 35. Qe6+ {[%clk 0:00:54.8]} 35... Qf7 {[%clk 0:00:02.5]} 36. Qg4+
{[%clk 0:00:54.4]} 36... Qg7 {[%clk 0:00:02.4]} 37. Qxf3 {[%clk 0:00:53.2]} 1-0

[Event "Early-Titled-Tuesday-Blitz-May-14-2024"]
[Site "Chess.com"]
[Date "2024.05.14"]
[Round "8"]
[White "Juicy_Fork"]
[Black "Gumugama"]
[Result "1-0"]
[WhiteElo "2459"]
[BlackElo "2290"]
[TimeControl "180+1"]
[EndTime "9:29:53 PDT"]
[Termination "Juicy_Fork won on time"]

1. e4 {[%clk 0:02:55.7]} 1... c5 {[%clk 0:02:59.5]} 2. Nf3 {[%clk 0:02:53.2]}
2... d6 {[%clk 0:02:59.4]} 3. d4 {[%clk 0:02:53.2]} 3... cxd4 {[%clk 0:02:59.6]}
4. Nxd4 {[%clk 0:02:54.1]} 4... Nf6 {[%clk 0:02:59.6]} 5. Nc3 {[%clk 0:02:53.6]}
5... a6 {[%clk 0:02:59]} 6. Bd3 {[%clk 0:02:48.5]} 6... e5 {[%clk 0:02:57.2]} 7.
Nde2 {[%clk 0:02:48.2]} 7... Be6 {[%clk 0:02:55.2]} 8. f4 {[%clk 0:02:45.9]}
8... Qc7 {[%clk 0:02:38.1]} 9. O-O {[%clk 0:02:40.8]} 9... Ng4 {[%clk
0:02:27.5]} 10. Kh1 {[%clk 0:02:29.6]} 10... Qc5 {[%clk 0:02:15.5]} 11. Qe1
{[%clk 0:02:23.6]} 11... Ne3 {[%clk 0:02:08]} 12. Rf3 {[%clk 0:02:18.1]} 12...
Nc4 {[%clk 0:01:47.1]} 13. f5 {[%clk 0:02:11.6]} 13... Bd7 {[%clk 0:01:45.9]}
14. Nd5 {[%clk 0:02:06.4]} 14... b5 {[%clk 0:01:30.6]} 15. b3 {[%clk 0:01:56]}
15... Be7 {[%clk 0:00:20.7]} 16. bxc4 {[%clk 0:01:38.3]} 16... bxc4 {[%clk
0:00:21.6]} 17. Bxc4 {[%clk 0:01:36.9]} 17... Qxc4 {[%clk 0:00:19.9]} 18. Rc3
{[%clk 0:01:37.1]} 18... Qxe4 {[%clk 0:00:12.6]} 19. Nc7+ {[%clk 0:01:36.4]}
19... Kf8 {[%clk 0:00:12.8]} 20. Nxa8 {[%clk 0:01:30.2]} 20... Bc6 {[%clk
0:00:12.8]} 21. Qf2 {[%clk 0:01:24.8]} 21... Bh4 {[%clk 0:00:04.4]} 22. Ng3
{[%clk 0:01:20.7]} 22... Bxg3 {[%clk 0:00:03.1]} 23. Qxg3 {[%clk 0:01:15.1]}
23... Bxa8 {[%clk 0:00:02.6]} 24. Rc8+ {[%clk 0:01:13.8]} 24... Ke7 {[%clk
0:00:03.2]} 25. Rxh8 {[%clk 0:01:13.3]} 25... Qd4 {[%clk 0:00:03.4]} 26. Qg5+
{[%clk 0:01:08.1]} 26... Kd7 {[%clk 0:00:02.7]} 27. Qd8+ {[%clk 0:01:08.5]}
27... Kc6 {[%clk 0:00:03.2]} 28. Qc8+ {[%clk 0:00:57.9]} 28... Kd5 {[%clk
0:00:02.8]} 29. Bb2 {[%clk 0:00:43.4]} 29... Qxb2 {[%clk 0:00:01.8]} 30. Rd1+
{[%clk 0:00:43.7]} 30... Ke4 {[%clk 0:00:01.4]} 31. Qc4+ {[%clk 0:00:44.4]}
31... Kxf5 {[%clk 0:00:00.2]} 32. Rf1+ {[%clk 0:00:44.8]} 1-0

[Event "Early-Titled-Tuesday-Blitz-May-14-2024"]
[Site "Chess.com"]
[Date "2024.05.14"]
[Round "8"]
[White "Szachulec75"]
[Black "Blitz_Lover1"]
[Result "0-1"]
[WhiteElo "2146"]
[BlackElo "2341"]
[TimeControl "180+1"]
[EndTime "9:29:54 PDT"]
[Termination "Blitz_Lover1 won by resignation"]

1. Nf3 {[%clk 0:03:00.9]} 1... d5 {[%clk 0:02:59.6]} 2. g3 {[%clk 0:02:57.7]}
2... Nf6 {[%clk 0:02:59.4]} 3. Bg2 {[%clk 0:02:58.2]} 3... Bf5 {[%clk
0:02:59.5]} 4. d3 {[%clk 0:02:59.1]} 4... Nbd7 {[%clk 0:02:58]} 5. O-O {[%clk
0:02:59.6]} 5... e5 {[%clk 0:02:57.5]} 6. Nbd2 {[%clk 0:02:59.9]} 6... Bd6
{[%clk 0:02:46.7]} 7. Re1 {[%clk 0:02:36.3]} 7... h6 {[%clk 0:02:36.6]} 8. e4
{[%clk 0:02:29.2]} 8... dxe4 {[%clk 0:02:35.2]} 9. dxe4 {[%clk 0:02:28.4]} 9...
Bh7 {[%clk 0:02:34]} 10. b3 {[%clk 0:02:22.1]} 10... O-O {[%clk 0:02:32.6]} 11.
Bb2 {[%clk 0:02:22.6]} 11... Qe7 {[%clk 0:02:28.8]} 12. h3 {[%clk 0:02:22.9]}
12... c6 {[%clk 0:02:25.5]} 13. Qe2 {[%clk 0:02:21.3]} 13... Rad8 {[%clk
0:02:24.3]} 14. Nh4 {[%clk 0:02:17.6]} 14... Nc5 {[%clk 0:02:16.3]} 15. Nf5
{[%clk 0:02:13.5]} 15... Bxf5 {[%clk 0:02:14.5]} 16. exf5 {[%clk 0:02:12.6]}
16... Rfe8 {[%clk 0:02:13.6]} 17. Nc4 {[%clk 0:02:09.2]} 17... e4 {[%clk
0:01:56.9]} 18. Rad1 {[%clk 0:02:05.3]} 18... b5 {[%clk 0:01:43.2]} 19. Nxd6
{[%clk 0:02:04.7]} 19... Rxd6 {[%clk 0:01:43.8]} 20. Qe3 {[%clk 0:01:48.5]}
20... Rd5 {[%clk 0:01:38.3]} 21. Ba3 {[%clk 0:01:41.9]} 21... Nfd7 {[%clk
0:00:51.2]} 22. g4 {[%clk 0:01:34.7]} 22... Qe5 {[%clk 0:00:48.6]} 23. c4 {[%clk
0:01:24.6]} 23... bxc4 {[%clk 0:00:46.6]} 24. bxc4 {[%clk 0:01:24]} 24... Rd3
{[%clk 0:00:42]} 25. Rxd3 {[%clk 0:01:01.1]} 25... Nxd3 {[%clk 0:00:42.9]} 26.
Rb1 {[%clk 0:00:53.6]} 26... N7c5 {[%clk 0:00:38.1]} 27. Kf1 {[%clk 0:00:18.6]}
27... Na4 {[%clk 0:00:27.6]} 28. Rb7 {[%clk 0:00:15.5]} 28... Qa1+ {[%clk
0:00:24.4]} 0-1

[Event "Early-Titled-Tuesday-Blitz-May-14-2024"]
[Site "Chess.com"]
[Date "2024.05.14"]
[Round "8"]
[White "OparinGrigoriy"]
[Black "sergiochess83"]
[Result "1-0"]
[WhiteElo "2988"]
[BlackElo "2866"]
[TimeControl "180+1"]
[EndTime "9:29:56 PDT"]
[Termination "OparinGrigoriy won on time"]

1. Nc3 {[%clk 0:03:00.9]} 1... d5 {[%clk 0:02:59.3]} 2. d4 {[%clk 0:03:01]} 2...
Nf6 {[%clk 0:02:58.8]} 3. Bf4 {[%clk 0:03:01.7]} 3... Bf5 {[%clk 0:02:54.3]} 4.
e3 {[%clk 0:03:01.4]} 4... e6 {[%clk 0:02:53.7]} 5. Bd3 {[%clk 0:03:00.9]} 5...
Bd6 {[%clk 0:02:51.7]} 6. Bxf5 {[%clk 0:02:57.6]} 6... exf5 {[%clk 0:02:52.1]}
7. Nge2 {[%clk 0:02:57.5]} 7... O-O {[%clk 0:02:50.7]} 8. Qd3 {[%clk 0:02:57.6]}
8... g6 {[%clk 0:02:50.5]} 9. O-O-O {[%clk 0:02:56.5]} 9... Bxf4 {[%clk
0:02:48.1]} 10. Nxf4 {[%clk 0:02:56.2]} 10... c6 {[%clk 0:02:45.1]} 11. f3
{[%clk 0:02:56.4]} 11... Re8 {[%clk 0:02:44.4]} 12. h3 {[%clk 0:02:55.3]} 12...
b5 {[%clk 0:02:30.4]} 13. g4 {[%clk 0:02:54.9]} 13... b4 {[%clk 0:02:25.8]} 14.
Na4 {[%clk 0:02:53.6]} 14... Qa5 {[%clk 0:02:04.4]} 15. b3 {[%clk 0:02:52.6]}
15... Nbd7 {[%clk 0:02:04.4]} 16. Kb1 {[%clk 0:02:47.9]} 16... c5 {[%clk
0:01:59.5]} 17. dxc5 {[%clk 0:02:21.2]} 17... Nxc5 {[%clk 0:02:00.4]} 18. Nxc5
{[%clk 0:02:21.7]} 18... Qxc5 {[%clk 0:02:00.3]} 19. Rhe1 {[%clk 0:02:22.3]}
19... fxg4 {[%clk 0:01:57.5]} 20. hxg4 {[%clk 0:02:22.5]} 20... Re5 {[%clk
0:01:56.4]} 21. Qd2 {[%clk 0:01:58.6]} 21... Qc3 {[%clk 0:00:58.3]} 22. Nd3
{[%clk 0:01:55.8]} 22... Rg5 {[%clk 0:00:50.4]} 23. Nxb4 {[%clk 0:01:54.9]}
23... Qxd2 {[%clk 0:00:47.2]} 24. Rxd2 {[%clk 0:01:55.8]} 24... h5 {[%clk
0:00:47]} 25. gxh5 {[%clk 0:01:54.8]} 25... gxh5 {[%clk 0:00:47.4]} 26. f4
{[%clk 0:01:49.5]} 26... Rf5 {[%clk 0:00:40]} 27. Nc6 {[%clk 0:01:49.5]} 27...
Re8 {[%clk 0:00:40]} 28. Nd4 {[%clk 0:01:48.7]} 28... Rxf4 {[%clk 0:00:40.3]}
29. Kb2 {[%clk 0:01:16.6]} 29... Ng4 {[%clk 0:00:34.8]} 30. Rh1 {[%clk
0:01:09.9]} 30... Rxe3 {[%clk 0:00:28.5]} 31. Rxh5 {[%clk 0:01:09]} 31... Nf6
{[%clk 0:00:21.3]} 32. Rg2+ {[%clk 0:01:06.3]} 32... Kf8 {[%clk 0:00:19.3]} 33.
Rh8+ {[%clk 0:01:06]} 33... Ke7 {[%clk 0:00:19.8]} 34. Nc6+ {[%clk 0:01:06.7]}
34... Kd7 {[%clk 0:00:17.1]} 35. Nxa7 {[%clk 0:01:06.9]} 35... Ne4 {[%clk
0:00:05.1]} 36. Nb5 {[%clk 0:01:05.8]} 36... Rf1 {[%clk 0:00:05.2]} 37. a4
{[%clk 0:01:02.7]} 37... Ree1 {[%clk 0:00:05.4]} 38. Ka3 {[%clk 0:01:02.7]}
38... Nc5 {[%clk 0:00:02]} 39. Kb4 {[%clk 0:01:01.1]} 39... Nb7 {[%clk
0:00:01.6]} 40. Rd2 {[%clk 0:00:54.9]} 40... Re4+ {[%clk 0:00:01.4]} 41. c4
{[%clk 0:00:54.6]} 1-0

[Event "Early-Titled-Tuesday-Blitz-May-14-2024"]
[Site "Chess.com"]
[Date "2024.05.14"]
[Round "8"]
[White "Kombinator01"]
[Black "BillCoe"]
[Result "1-0"]
[WhiteElo "2372"]
[BlackElo "2183"]
[TimeControl "180+1"]
[EndTime "9:30:03 PDT"]
[Termination "Kombinator01 won on time"]

1. e4 {[%clk 0:02:57.1]} 1... c5 {[%clk 0:03:00.1]} 2. Nc3 {[%clk 0:02:54.8]}
2... e6 {[%clk 0:03:00.3]} 3. f4 {[%clk 0:02:54.5]} 3... d5 {[%clk 0:03:00.4]}
4. Nf3 {[%clk 0:02:50.4]} 4... Nc6 {[%clk 0:02:57.9]} 5. exd5 {[%clk 0:02:48.3]}
5... exd5 {[%clk 0:02:57.7]} 6. d4 {[%clk 0:02:48.7]} 6... Nf6 {[%clk
0:02:55.3]} 7. Bb5 {[%clk 0:02:48]} 7... a6 {[%clk 0:02:48.5]} 8. Bxc6+ {[%clk
0:02:46.8]} 8... bxc6 {[%clk 0:02:49.4]} 9. O-O {[%clk 0:02:46.2]} 9... Be7
{[%clk 0:02:48.9]} 10. Be3 {[%clk 0:02:37.8]} 10... cxd4 {[%clk 0:02:47.2]} 11.
Bxd4 {[%clk 0:02:36]} 11... O-O {[%clk 0:02:46.5]} 12. Ne5 {[%clk 0:02:33.9]}
12... Qc7 {[%clk 0:02:41.6]} 13. Re1 {[%clk 0:02:27.8]} 13... c5 {[%clk
0:02:40.7]} 14. Bf2 {[%clk 0:02:27]} 14... d4 {[%clk 0:02:38.3]} 15. Ne4 {[%clk
0:02:11.2]} 15... Nxe4 {[%clk 0:02:37.6]} 16. Rxe4 {[%clk 0:02:12.1]} 16... Bb7
{[%clk 0:02:37.8]} 17. Re2 {[%clk 0:02:11.9]} 17... Bf6 {[%clk 0:02:37.5]} 18.
Bg3 {[%clk 0:02:10.6]} 18... Rfe8 {[%clk 0:02:31.5]} 19. b3 {[%clk 0:02:06.7]}
19... Rad8 {[%clk 0:02:30.2]} 20. Qf1 {[%clk 0:01:53.5]} 20... Qd6 {[%clk
0:02:26.5]} 21. Rae1 {[%clk 0:01:52.4]} 21... Qd5 {[%clk 0:02:21.5]} 22. Ng4
{[%clk 0:01:35.1]} 22... Rxe2 {[%clk 0:02:13.4]} 23. Nxf6+ {[%clk 0:01:34.9]}
23... gxf6 {[%clk 0:02:14.3]} 24. Qxe2 {[%clk 0:01:34.8]} 24... Bc6 {[%clk
0:01:54.9]} 25. Qg4+ {[%clk 0:01:32.1]} 25... Kf8 {[%clk 0:01:48]} 26. Bh4
{[%clk 0:01:28.5]} 26... Rd6 {[%clk 0:01:32.7]} 27. h3 {[%clk 0:01:23]} 27... d3
{[%clk 0:01:07.7]} 28. cxd3 {[%clk 0:01:22.1]} 28... Qxd3 {[%clk 0:01:07.8]} 29.
Bf2 {[%clk 0:01:13.5]} 29... Qd5 {[%clk 0:01:04.9]} 30. Kh2 {[%clk 0:01:12.1]}
30... f5 {[%clk 0:00:59.9]} 31. Qf3 {[%clk 0:00:59.7]} 31... Qxf3 {[%clk
0:00:58.7]} 32. gxf3 {[%clk 0:00:59.5]} 32... Bxf3 {[%clk 0:00:55.7]} 33. Bxc5
{[%clk 0:00:59.5]} 33... Kg7 {[%clk 0:00:10.3]} 34. Bxd6 {[%clk 0:00:52.4]}
34... Be4 {[%clk 0:00:09.9]} 35. Be5+ {[%clk 0:00:51.7]} 35... Kf8 {[%clk
0:00:08.3]} 36. Bf6 {[%clk 0:00:51.6]} 36... Kg8 {[%clk 0:00:02.7]} 37. Rc1
{[%clk 0:00:52.5]} 37... h5 {[%clk 0:00:01.7]} 38. Kg3 {[%clk 0:00:50.9]} 38...
Kh7 {[%clk 0:00:00.8]} 39. Kh4 {[%clk 0:00:50.9]} 39... Kg6 {[%clk 0:00:01.7]}
40. Be5 {[%clk 0:00:50]} 1-0

[Event "Early-Titled-Tuesday-Blitz-May-14-2024"]
[Site "Chess.com"]
[Date "2024.05.14"]
[Round "8"]
[White "yuriydovzik"]
[Black "DarZay"]
[Result "1-0"]
[WhiteElo "2167"]
[BlackElo "2307"]
[TimeControl "180+1"]
[EndTime "9:30:05 PDT"]
[Termination "yuriydovzik won by resignation"]

1. b3 {[%clk 0:02:55.6]} 1... d5 {[%clk 0:02:59.3]} 2. Bb2 {[%clk 0:02:54.8]}
2... c5 {[%clk 0:02:59.4]} 3. e3 {[%clk 0:02:51.7]} 3... Nc6 {[%clk 0:02:58.6]}
4. Nf3 {[%clk 0:02:48.6]} 4... Qc7 {[%clk 0:02:57.3]} 5. Bb5 {[%clk 0:02:46.2]}
5... Bg4 {[%clk 0:02:54.5]} 6. h3 {[%clk 0:02:42.5]} 6... Bh5 {[%clk 0:02:54.3]}
7. g4 {[%clk 0:02:39.7]} 7... Bg6 {[%clk 0:02:54.2]} 8. Ne5 {[%clk 0:02:36.8]}
8... e6 {[%clk 0:02:50.3]} 9. f4 {[%clk 0:02:28.7]} 9... Be4 {[%clk 0:02:47.8]}
10. O-O {[%clk 0:02:23.6]} 10... f6 {[%clk 0:02:36.2]} 11. d3 {[%clk 0:02:14.4]}
11... Bg6 {[%clk 0:02:30.2]} 12. Bxc6+ {[%clk 0:02:05.1]} 12... bxc6 {[%clk
0:02:29.1]} 13. Nxg6 {[%clk 0:02:04.8]} 13... hxg6 {[%clk 0:02:28.5]} 14. Qf3
{[%clk 0:02:00.5]} 14... Bd6 {[%clk 0:02:26.4]} 15. Nd2 {[%clk 0:01:56.5]} 15...
Nh6 {[%clk 0:02:17.8]} 16. c4 {[%clk 0:01:52.1]} 16... Nf7 {[%clk 0:02:16.1]}
17. Kg2 {[%clk 0:01:43.4]} 17... O-O-O {[%clk 0:02:15.4]} 18. Rac1 {[%clk
0:01:33.4]} 18... Rh4 {[%clk 0:02:12]} 19. Rh1 {[%clk 0:01:29.1]} 19... Rdh8
{[%clk 0:02:11]} 20. Qf2 {[%clk 0:01:24.7]} 20... g5 {[%clk 0:02:06.4]} 21. Nf3
{[%clk 0:01:21.7]} 21... R4h6 {[%clk 0:02:03.3]} 22. cxd5 {[%clk 0:01:10.8]}
22... gxf4 {[%clk 0:01:59.4]} 23. dxe6 {[%clk 0:01:03.2]} 23... fxe3 {[%clk
0:01:52.3]} 24. Qxe3 {[%clk 0:00:57.1]} 24... Bf4 {[%clk 0:01:49.2]} 25. Qxc5
{[%clk 0:00:55.2]} 25... Bxc1 {[%clk 0:01:48.3]} 26. exf7 {[%clk 0:00:45.1]}
26... Bxb2 {[%clk 0:01:14.7]} 27. f8=Q+ {[%clk 0:00:42.8]} 27... Rxf8 {[%clk
0:01:14.6]} 28. Qxf8+ {[%clk 0:00:40.8]} 28... Kb7 {[%clk 0:01:14.7]} 29. Qb4+
{[%clk 0:00:36.3]} 29... Qb6 {[%clk 0:01:14.6]} 30. Qe7+ {[%clk 0:00:24.5]}
30... Qc7 {[%clk 0:01:14.7]} 31. Re1 {[%clk 0:00:17.5]} 31... Rh7 {[%clk
0:00:55.9]} 32. Qb4+ {[%clk 0:00:14.1]} 32... Qb6 {[%clk 0:00:55.4]} 33. Re7+
{[%clk 0:00:12.9]} 33... Ka6 {[%clk 0:00:55.4]} 34. Qa4+ {[%clk 0:00:09.9]}
34... Qa5 {[%clk 0:00:55.6]} 35. Rxa7+ {[%clk 0:00:08.3]} 35... Kxa7 {[%clk
0:00:55.3]} 36. Qxa5+ {[%clk 0:00:08.6]} 36... Kb7 {[%clk 0:00:55.7]} 37. Qb4+
{[%clk 0:00:08.1]} 37... Kc8 {[%clk 0:00:53.4]} 38. Qf8+ {[%clk 0:00:06.8]}
38... Kb7 {[%clk 0:00:52.4]} 39. Qg8 {[%clk 0:00:06.7]} 39... Rh6 {[%clk
0:00:46.6]} 40. Qxg7+ {[%clk 0:00:06.8]} 40... Kb6 {[%clk 0:00:46.7]} 41. Qxh6
{[%clk 0:00:07.4]} 41... c5 {[%clk 0:00:46.9]} 42. Qg6 {[%clk 0:00:07.9]} 1-0

[Event "Early-Titled-Tuesday-Blitz-May-14-2024"]
[Site "Chess.com"]
[Date "2024.05.14"]
[Round "8"]
[White "Polish_fighter3000"]
[Black "BilodeauA"]
[Result "1-0"]
[WhiteElo "3112"]
[BlackElo "2905"]
[TimeControl "180+1"]
[EndTime "9:30:07 PDT"]
[Termination "Polish_fighter3000 won by resignation"]

1. d4 {[%clk 0:03:00.9]} 1... d5 {[%clk 0:03:00.6]} 2. c4 {[%clk 0:03:00.7]}
2... dxc4 {[%clk 0:03:01.5]} 3. e4 {[%clk 0:03:00.6]} 3... Nf6 {[%clk
0:03:01.9]} 4. e5 {[%clk 0:03:00.8]} 4... Nd5 {[%clk 0:03:02.6]} 5. Bxc4 {[%clk
0:03:01.1]} 5... Nb6 {[%clk 0:03:03]} 6. Bd3 {[%clk 0:02:59.2]} 6... Nc6 {[%clk
0:03:03.3]} 7. Ne2 {[%clk 0:02:58.8]} 7... Bg4 {[%clk 0:02:59.9]} 8. Be3 {[%clk
0:02:53.4]} 8... Qd7 {[%clk 0:02:56]} 9. Nbc3 {[%clk 0:02:35]} 9... O-O-O {[%clk
0:02:54.8]} 10. Be4 {[%clk 0:02:13.5]} 10... Bf5 {[%clk 0:02:41.6]} 11. O-O
{[%clk 0:01:56.9]} 11... Bxe4 {[%clk 0:02:41.5]} 12. Nxe4 {[%clk 0:01:57.8]}
12... e6 {[%clk 0:02:42.1]} 13. a3 {[%clk 0:01:54.4]} 13... Kb8 {[%clk
0:02:42.1]} 14. Qc2 {[%clk 0:01:54.3]} 14... Be7 {[%clk 0:02:41.7]} 15. b4
{[%clk 0:01:48.2]} 15... a6 {[%clk 0:02:32.9]} 16. Rab1 {[%clk 0:01:45.5]} 16...
Na7 {[%clk 0:02:24.8]} 17. Rfc1 {[%clk 0:01:23.8]} 17... Qc6 {[%clk 0:02:02.4]}
18. Nc5 {[%clk 0:00:53.1]} 18... Nd5 {[%clk 0:01:32.2]} 19. a4 {[%clk
0:00:46.4]} 19... Bxc5 {[%clk 0:01:31.6]} 20. dxc5 {[%clk 0:00:41.8]} 20... Nxe3
{[%clk 0:01:27]} 21. fxe3 {[%clk 0:00:42.7]} 21... Qd5 {[%clk 0:01:27.5]} 22. b5
{[%clk 0:00:40]} 22... a5 {[%clk 0:00:49.5]} 23. Nd4 {[%clk 0:00:31]} 23... Qxe5
{[%clk 0:00:47.1]} 24. Qc3 {[%clk 0:00:31.5]} 24... Qe4 {[%clk 0:00:39]} 25. b6
{[%clk 0:00:28.7]} 25... Nc6 {[%clk 0:00:37.4]} 26. bxc7+ {[%clk 0:00:27.5]}
26... Kxc7 {[%clk 0:00:37.5]} 27. Nb5+ {[%clk 0:00:28.1]} 27... Kc8 {[%clk
0:00:30.5]} 28. Nd6+ {[%clk 0:00:28.3]} 28... Rxd6 {[%clk 0:00:31.2]} 29. cxd6
{[%clk 0:00:29.2]} 29... Rd8 {[%clk 0:00:31.6]} 30. Qxa5 {[%clk 0:00:20.3]}
30... Qxe3+ {[%clk 0:00:30.2]} 31. Kh1 {[%clk 0:00:20.1]} 1-0

[Event "Early-Titled-Tuesday-Blitz-May-14-2024"]
[Site "Chess.com"]
[Date "2024.05.14"]
[Round "8"]
[White "pfalcon1949"]
[Black "Darko-Dimitrijevic"]
[Result "0-1"]
[WhiteElo "1916"]
[BlackElo "2214"]
[TimeControl "180+1"]
[EndTime "9:30:07 PDT"]
[Termination "Darko-Dimitrijevic won on time"]

1. e4 {[%clk 0:03:00.9]} 1... d6 {[%clk 0:02:58.4]} 2. d4 {[%clk 0:02:59.7]}
2... Nf6 {[%clk 0:02:57]} 3. Nc3 {[%clk 0:02:59.3]} 3... c6 {[%clk 0:02:57.1]}
4. f4 {[%clk 0:02:59]} 4... Qa5 {[%clk 0:02:56.1]} 5. Nf3 {[%clk 0:02:57.6]}
5... Nxe4 {[%clk 0:02:53.9]} 6. Bd3 {[%clk 0:02:54.9]} 6... Nxc3 {[%clk
0:02:52.9]} 7. bxc3 {[%clk 0:02:54.6]} 7... Qxc3+ {[%clk 0:02:51.1]} 8. Bd2
{[%clk 0:02:54.8]} 8... Qa3 {[%clk 0:02:50.8]} 9. O-O {[%clk 0:02:54]} 9... Nd7
{[%clk 0:02:47.9]} 10. Ng5 {[%clk 0:02:51.3]} 10... Nf6 {[%clk 0:02:46.1]} 11.
h3 {[%clk 0:02:36.4]} 11... h6 {[%clk 0:02:45.4]} 12. Nf3 {[%clk 0:02:30.6]}
12... d5 {[%clk 0:02:37.7]} 13. Qe2 {[%clk 0:02:22.8]} 13... e6 {[%clk 0:02:35]}
14. Ne5 {[%clk 0:02:21.8]} 14... Be7 {[%clk 0:02:32.2]} 15. c3 {[%clk
0:02:19.4]} 15... Qd6 {[%clk 0:02:30.2]} 16. Rae1 {[%clk 0:02:17.8]} 16... O-O
{[%clk 0:02:29.3]} 17. Kh1 {[%clk 0:02:18.1]} 17... c5 {[%clk 0:02:24.1]} 18.
Qf2 {[%clk 0:02:11.5]} 18... c4 {[%clk 0:02:23]} 19. Bb1 {[%clk 0:02:08.6]}
19... b5 {[%clk 0:02:20.3]} 20. Qg3 {[%clk 0:02:06.2]} 20... Kh8 {[%clk
0:02:14.9]} 21. f5 {[%clk 0:01:57.3]} 21... exf5 {[%clk 0:02:14]} 22. Nxf7+
{[%clk 0:01:43.7]} 22... Rxf7 {[%clk 0:02:10.2]} 23. Qg6 {[%clk 0:01:43.5]}
23... Rf8 {[%clk 0:01:54]} 24. Bxh6 {[%clk 0:01:35.6]} 24... gxh6 {[%clk
0:01:52.1]} 25. Qxh6+ {[%clk 0:01:36.5]} 25... Nh7 {[%clk 0:01:51]} 26. Qh5
{[%clk 0:01:28.3]} 26... Bg5 {[%clk 0:01:40.7]} 27. Re5 {[%clk 0:01:11.7]} 27...
Qh6 {[%clk 0:01:38.2]} 28. Qe2 {[%clk 0:01:07.1]} 28... Bd7 {[%clk 0:01:32.8]}
29. Rxd5 {[%clk 0:00:57]} 29... Rae8 {[%clk 0:01:28.8]} 30. Re5 {[%clk
0:00:54.6]} 30... Nf6 {[%clk 0:01:20.4]} 31. Bxf5 {[%clk 0:00:44.6]} 31... Bxf5
{[%clk 0:01:14.2]} 32. Rfxf5 {[%clk 0:00:43.9]} 32... Nh5 {[%clk 0:01:10]} 33.
Rxg5 {[%clk 0:00:08.7]} 33... Qxg5 {[%clk 0:01:06.9]} 34. Qxh5+ {[%clk
0:00:06.6]} 34... Qxh5 {[%clk 0:01:06.5]} 35. Rxh5+ {[%clk 0:00:07.5]} 35... Kg7
{[%clk 0:01:06.4]} 36. Rxb5 {[%clk 0:00:07.2]} 36... Re2 {[%clk 0:01:01.7]} 37.
Rb7+ {[%clk 0:00:06]} 37... Rf7 {[%clk 0:01:01.6]} 38. Rb4 {[%clk 0:00:05.9]}
38... Rf1+ {[%clk 0:01:00.1]} 39. Kh2 {[%clk 0:00:05.2]} 39... Rff2 {[%clk
0:01:00.2]} 40. Rxc4 {[%clk 0:00:04.6]} 40... Rxg2+ {[%clk 0:00:59.8]} 41. Kh1
{[%clk 0:00:05.2]} 41... Rxa2 {[%clk 0:00:57.5]} 42. Rc7+ {[%clk 0:00:04.2]}
42... Kh6 {[%clk 0:00:56.6]} 43. Rxa7 {[%clk 0:00:04]} 43... Rxa7 {[%clk
0:00:53.1]} 44. Kxg2 {[%clk 0:00:03.8]} 44... Rc7 {[%clk 0:00:53.2]} 0-1